bitfinex/quotes_BTCUSD_20241021
["timestamp","ask_amount","ask_price","bid_price","bid_amount"]
[1729536006346,0.001684,67312.0,67311.0,1.084664]
[1729536006569,0.001684,67312.0,67311.0,1.3825823]
[1729536006793,0.001684,67312.0,67311.0,1.3685823]
[1729536007012,0.001684,67312.0,67311.0,1.21462315]
[1729536007233,0.001684,67312.0,67311.0,1.24262315]
[1729536007448,0.001684,67312.0,67311.0,1.22862315]
[1729536007916,1.256384,67312.0,67311.0,1.24262315]
[1729536009235,1.256384,67312.0,67311.0,1.27025664]
[1729536009454,1.256384,67312.0,67311.0,1.27525664]
[1729536009677,1.256384,67312.0,67311.0,1.38525664]
[1729536012124,1.19272361,67312.0,67311.0,1.38525664]
[1729536012389,0.50559697,67312.0,67311.0,1.38525664]
[1729536012599,0.22351363,67331.0,67311.0,1.38525664]
[1729536012600,1.2547,67319.0,67318.0,0.483748]
[1729536012817,1.2547,67319.0,67318.0,1.33270715]
[1729536014783,1.2547,67319.0,67318.0,1.34670715]
[1729536015487,1.2547,67319.0,67318.0,1.36070715]
[1729536017240,1.2547,67319.0,67318.0,1.35070715]
[1729536017722,1.2547,67319.0,67318.0,0.95885915]
[1729536017936,1.2547,67319.0,67318.0,1.10740715]
[1729536018149,1.2547,67319.0,67318.0,1.02750715]
[1729536018836,1.2547,67319.0,67318.0,1.01350715]
[1729536019258,1.2547,67319.0,67318.0,1.02350715]
[1729536020314,1.2547,67319.0,67318.0,1.00950715]
[1729536020547,1.2547,67319.0,67318.0,1.01050715]
[1729536020963,1.2547,67319.0,67318.0,1.02050715]
[1729536023171,0.22351363,67331.0,67318.0,0.87195915]
[1729536023392,0.148532,67326.0,67319.0,0.15095915]
[1729536023609,0.148543,67321.0,67319.0,0.702]
[1729536023859,0.150228,67320.0,67319.0,0.7]
[1729536024094,0.01856318,67320.0,67319.0,0.7]
[1729536024333,0.16710718,67320.0,67319.0,0.7]
[1729536024571,0.16710718,67320.0,67319.0,0.702]
[1729536024790,0.16710718,67320.0,67319.0,0.7]
[1729536025733,0.16710718,67320.0,67319.0,0.709]
[1729536026201,0.16710718,67320.0,67319.0,0.7]
[1729536027559,0.01856318,67320.0,67319.0,0.7]
[1729536027786,0.01856318,67320.0,67319.0,0.701]
[1729536027997,0.001684,67320.0,67319.0,0.701]
[1729536028215,0.01842246,67320.0,67319.0,0.711]
[1729536028426,0.001684,67320.0,67319.0,0.711]
[1729536028854,0.01842246,67320.0,67319.0,0.701]
[1729536029102,0.001684,67320.0,67319.0,0.701]
[1729536029329,0.01842246,67320.0,67319.0,0.702]
[1729536029532,0.001684,67320.0,67319.0,0.702]
[1729536029755,0.01842246,67320.0,67319.0,0.702]
[1729536029972,0.001684,67320.0,67319.0,0.702]
[1729536030202,0.01842246,67320.0,67319.0,0.702]
[1729536030654,0.16696646,67320.0,67319.0,0.702]
[1729536031945,0.16241372,67320.0,67319.0,0.702]
[1729536033013,0.52677287,67320.0,67319.0,0.702]
[1729536033214,1.89520714,67320.0,67319.0,0.702]
[1729536033426,1.89521176,67320.0,67319.0,0.702]
[1729536033634,1.89521176,67320.0,67319.0,0.002]
[1729536033846,1.89520499,67320.0,67319.0,0.002]
[1729536034233,1.89520499,67320.0,67319.0,0.001]
[1729536034456,1.88347287,67320.0,67319.0,0.001]
[1729536034656,1.89819998,67320.0,67319.0,0.002]
[1729536034864,1.89819998,67320.0,67319.0,0.001]
[1729536035103,0.153559,67313.0,67312.0,0.000825]
[1729536035317,0.232659,67313.0,67312.0,0.000825]
[1729536035472,0.24479308,67313.0,67312.0,0.000825]
[1729536036256,0.24579308,67313.0,67312.0,0.000825]
[1729536042317,0.24579308,67313.0,67312.0,0.000825]
[1729536045844,0.24579308,67313.0,67287.0,0.002]
[1729536045845,0.005,67295.0,67287.0,0.002]
[1729536046077,0.005,67295.0,67284.0,0.081]
[1729536046078,0.14861,67290.0,67288.0,0.002825]
[1729536046297,0.148612,67289.0,67288.0,0.002825]
[1729536046516,0.16061105,67289.0,67288.0,0.002825]
[1729536047919,0.16061105,67289.0,67288.0,0.009825]
[1729536048167,0.38412468,67289.0,67288.0,0.015825]
[1729536048388,0.16061105,67289.0,67288.0,0.000825]
[1729536048606,0.16061105,67289.0,67288.0,0.005825]
[1729536048826,0.16061105,67289.0,67288.0,0.009825]
[1729536050226,0.38412468,67289.0,67288.0,0.009825]
[1729536050459,0.16043225,67289.0,67288.0,0.005825]
[1729536050695,0.16043225,67289.0,67288.0,0.000825]
[1729536050918,0.16343225,67289.0,67288.0,0.000825]
[1729536051140,0.16543225,67289.0,67288.0,0.000825]
[1729536051359,0.16243225,67289.0,67288.0,0.000825]
[1729536051579,0.16543225,67289.0,67288.0,0.000825]
[1729536052030,0.01699905,67289.0,67288.0,0.000825]
[1729536053157,0.16561105,67289.0,67288.0,0.000825]
[1729536054344,0.01699905,67289.0,67288.0,0.000825]
[1729536056691,0.01399905,67289.0,67288.0,0.000825]
[1729536056908,0.01199905,67289.0,67288.0,0.000825]
[1729536057135,0.148599,67296.0,67288.0,0.001825]
[1729536057393,0.01193383,67289.0,67288.0,0.24714665]
[1729536057583,0.37211063,67296.0,67288.0,0.24714665]
[1729536057812,0.0118952,67289.0,67288.0,0.24714665]
[1729536058056,0.0118952,67289.0,67288.0,0.22518415]
[1729536058271,0.148599,67295.0,67288.0,0.22618415]
[1729536058481,0.148599,67295.0,67288.0,0.22718415]
[1729536058739,0.16049712,67294.0,67288.0,0.22618415]
[1729536058998,0.297213,67292.0,67288.0,0.22618415]
[1729536059234,0.297207,67293.0,67288.0,0.001825]
[1729536059453,0.148612,67289.0,67288.0,0.001825]
[1729536059670,0.148612,67289.0,67288.0,0.000825]
[1729536059889,0.16050712,67289.0,67288.0,0.000825]
[1729536060111,0.16050712,67289.0,67288.0,0.009825]
[1729536062862,0.16050712,67289.0,67288.0,0.005825]
[1729536063325,0.16350712,67289.0,67288.0,0.005825]
[1729536063553,0.16350712,67289.0,67288.0,0.000825]
[1729536063797,0.16050712,67289.0,67288.0,0.000825]
[1729536064047,0.16250712,67289.0,67288.0,0.001825]
[1729536064268,0.01189512,67289.0,67288.0,0.001825]
[1729536064501,0.01289512,67289.0,67288.0,0.081425]
[1729536064713,0.001,67289.0,67288.0,0.206925]
[1729536064930,0.01289161,67289.0,67288.0,0.206925]
[1729536065420,0.01189161,67289.0,67288.0,0.206925]
[1729536065653,0.01189161,67289.0,67288.0,0.207925]
[1729536065865,0.002,67289.0,67288.0,0.207925]
[1729536066085,0.01387435,67289.0,67288.0,0.207925]
[1729536066338,0.01187435,67289.0,67288.0,0.2309175]
[1729536066568,0.1486,67295.0,67288.0,0.2309175]
[1729536066816,1.551856,67305.0,67291.0,0.002]
[1729536067034,0.148581,67303.0,67301.0,0.002]
[1729536067256,0.37209363,67304.0,67301.0,0.002]
[1729536067712,0.148583,67302.0,67301.0,0.002]
[1729536068467,0.002,67304.0,67301.0,0.002]
[1729536068672,0.148581,67303.0,67301.0,0.002]
[1729536068897,0.297154,67305.0,67301.0,0.002]
[1729536069141,0.148583,67302.0,67301.0,0.002]
[1729536069800,0.003,67304.0,67301.0,0.002]
[1729536069801,0.297154,67305.0,67301.0,0.002]
[1729536070015,0.003,67305.0,67301.0,0.002]
[1729536070434,0.003,67305.0,67302.0,0.0765]
[1729536070658,0.003,67305.0,67304.0,0.173579]
[1729536070886,0.003,67305.0,67304.0,0.39923815]
[1729536071116,0.22351363,67309.0,67307.0,0.002]
[1729536071347,0.22351363,67309.0,67308.0,0.14895915]
[1729536071578,0.297113,67315.0,67308.0,0.14895915]
[1729536071824,0.14857,67308.0,67307.0,0.002]
[1729536072049,0.001652,67312.0,67307.0,0.002]
[1729536072289,0.14857,67308.0,67307.0,0.002]
[1729536073195,0.14957,67308.0,67307.0,0.009]
[1729536073660,0.14857,67308.0,67307.0,0.002]
[1729536073892,0.001652,67312.0,67307.0,0.002]
[1729536073893,0.148569,67309.0,67307.0,0.002]
[1729536074141,0.14857,67308.0,67307.0,0.003]
[1729536074374,0.14857,67308.0,67307.0,0.006]
[1729536074610,0.297133,67310.0,67307.0,0.003]
[1729536074611,0.148566,67310.0,67307.0,0.003]
[1729536074844,0.148568,67310.0,67307.0,0.008]
[1729536075307,0.14857,67308.0,67307.0,0.003]
[1729536075531,0.148568,67309.0,67307.0,0.004]
[1729536075756,0.148568,67309.0,67307.0,0.007]
[1729536075978,0.297132,67310.0,67307.0,0.007]
[1729536076206,0.148569,67309.0,67307.0,0.002]
[1729536076424,0.01199849,67309.0,67307.0,0.002]
[1729536076865,0.01199849,67309.0,67307.0,0.004]
[1729536077332,0.01199849,67309.0,67307.0,0.002]
[1729536077784,0.01199849,67309.0,67307.0,0.003]
[1729536078552,0.14857,67308.0,67307.0,0.001]
[1729536078804,0.14857,67308.0,67307.0,0.002]
[1729536079048,0.16056849,67308.0,67307.0,0.002]
[1729536079494,0.16056849,67308.0,67307.0,0.001]
[1729536079939,0.01199849,67308.0,67307.0,0.003]
[1729536080155,0.148566,67310.0,67307.0,0.003]
[1729536080388,0.01198573,67308.0,67307.0,0.001]
[1729536080619,0.148569,67309.0,67307.0,0.001]
[1729536080836,0.01198573,67308.0,67303.0,0.002]
[1729536081060,0.01198573,67308.0,67305.0,0.0789]
[1729536081378,0.01198573,67307.0,67305.0,0.0789]
[1729536081608,0.150216,67312.0,67305.0,0.0789]
[1729536081824,0.01198573,67306.0,67305.0,0.0789]
[1729536082043,0.001,67308.0,67305.0,0.0789]
[1729536082266,0.148564,67311.0,67305.0,0.0789]
[1729536082505,0.01198573,67307.0,67305.0,0.0789]
[1729536082707,0.298778,67312.0,67305.0,0.0789]
[1729536082927,0.001652,67306.0,67305.0,0.0789]
[1729536083622,0.01363773,67306.0,67305.0,0.0789]
[1729536083871,0.001652,67306.0,67305.0,0.62252725]
[1729536084121,0.01363773,67306.0,67305.0,0.52453615]
[1729536084342,0.01363773,67306.0,67305.0,0.52553615]
[1729536084570,0.001652,67306.0,67305.0,0.66724006]
[1729536084789,0.001652,67306.0,67305.0,0.66624006]
[1729536085000,0.001652,67306.0,67305.0,0.67224006]
[1729536085215,0.001652,67306.0,67305.0,0.66724006]
[1729536085341,0.001652,67306.0,67305.0,0.66624006]
[1729536085553,0.001652,67306.0,67305.0,0.68024006]
[1729536085832,0.002652,67306.0,67305.0,0.68024006]
[1729536086049,0.002652,67306.0,67305.0,0.68524006]
[1729536086281,0.001652,67312.0,67305.0,0.52266306]
[1729536086505,0.001652,67312.0,67311.0,0.373664]
[1729536086733,0.001652,67312.0,67311.0,0.52262315]
[1729536087400,0.001652,67312.0,67311.0,0.63762315]
[1729536088546,0.001652,67312.0,67311.0,0.64980002]
[1729536089016,0.00165,67319.0,67318.0,0.178548]
[1729536089231,0.00165,67319.0,67318.0,0.61188335]
[1729536090825,0.00165,67319.0,67318.0,0.6239415]
[1729536091306,0.00165,67319.0,67318.0,0.6379415]
[1729536093098,0.00165,67319.0,67318.0,0.6519415]
[1729536093360,0.00165,67319.0,67318.0,0.6539415]
[1729536093577,0.00165,67319.0,67318.0,0.6519415]
[1729536094938,0.00165,67319.0,67318.0,0.5686653]
[1729536099886,0.00165,67319.0,67318.0,0.25685915]
[1729536100363,0.00165,67319.0,67318.0,0.40540715]
[1729536101330,0.00165,67319.0,67318.0,0.42840715]
[1729536101555,0.00165,67319.0,67318.0,0.55810715]
[1729536101807,0.00165,67319.0,67318.0,0.70473445]
[1729536103103,0.00165,67319.0,67318.0,0.55810715]
[1729536105967,0.00165,67319.0,67318.0,1.25810715]
[1729536112767,0.00165,67319.0,67318.0,0.95685915]
[1729536112986,0.00165,67319.0,67318.0,1.10540715]
[1729536117509,0.00165,67319.0,67318.0,0.95685915]
[1729536117741,0.00165,67319.0,67318.0,1.10540715]
[1729536118193,0.00165,67319.0,67318.0,0.95685915]
[1729536118638,0.01385008,67319.0,67318.0,0.73]
[1729536118863,0.00165,67319.0,67318.0,0.73]
[1729536119531,0.01385008,67319.0,67318.0,0.73]
[1729536122786,0.00165,67319.0,67318.0,0.73]
[1729536123700,0.00165,67319.0,67318.0,0.03]
[1729536124374,0.01385008,67319.0,67318.0,0.03]
[1729536124585,0.00165,67319.0,67318.0,0.03]
[1729536125689,0.00165,67319.0,67318.0,0.178548]
[1729536126561,0.00165,67319.0,67318.0,0.878548]
[1729536127633,0.00165,67319.0,67318.0,0.95066208]
[1729536128311,0.00165,67319.0,67318.0,0.878548]
[1729536128991,0.001316,67319.0,67318.0,0.878548]
[1729536131157,0.001316,67319.0,67318.0,0.87895915]
[1729536131386,0.001316,67319.0,67318.0,1.25270715]
[1729536134839,0.001316,67319.0,67318.0,1.26471416]
[1729536134991,0.001316,67319.0,67318.0,1.41367331]
[1729536139114,0.001316,67319.0,67318.0,1.26471416]
[1729536142123,0.001316,67319.0,67318.0,1.10630715]
[1729536142953,0.001316,67319.0,67318.0,0.95775915]
[1729536143286,0.001316,67319.0,67318.0,1.10630715]
[1729536144101,0.001316,67319.0,67318.0,0.95775915]
[1729536144308,0.001316,67319.0,67318.0,1.10630715]
[1729536145344,0.001316,67319.0,67318.0,1.23390715]
[1729536145474,0.001316,67319.0,67318.0,1.25690715]
[1729536152314,0.001316,67319.0,67318.0,1.25773215]
[1729536154050,0.001316,67319.0,67318.0,1.36273215]
[1729536170075,0.001316,67319.0,67318.0,1.36773215]
[1729536170301,0.001316,67319.0,67318.0,1.5216913]
[1729536170530,0.001316,67319.0,67318.0,1.65536948]
[1729536170734,0.001684,67320.0,67318.0,1.65536948]
[1729536170735,0.001684,67320.0,67319.0,0.288546]
[1729536170947,0.001684,67320.0,67319.0,1.34520515]
[1729536171575,0.001684,67320.0,67319.0,1.35634585]
[1729536171772,0.001684,67320.0,67319.0,1.505305]
[1729536173098,0.001684,67320.0,67319.0,1.519305]
[1729536173311,0.001684,67320.0,67319.0,1.36934585]
[1729536173976,0.001684,67320.0,67319.0,1.37434585]
[1729536174202,0.001684,67320.0,67319.0,1.36934585]
[1729536174421,0.001684,67320.0,67319.0,1.37434585]
[1729536174632,0.001684,67320.0,67319.0,1.523305]
[1729536175299,0.001684,67320.0,67319.0,1.5121643]
[1729536175512,0.001684,67320.0,67319.0,1.52331]
[1729536176193,0.001684,67320.0,67319.0,1.51831]
[1729536176382,0.001684,67320.0,67319.0,1.52331]
[1729536176620,0.001684,67320.0,67319.0,1.51831]
[1729536176807,0.001684,67320.0,67319.0,1.52331]
[1729536177288,0.001684,67320.0,67319.0,1.51831]
[1729536177507,0.001684,67320.0,67319.0,1.06165085]
[1729536178617,0.001684,67320.0,67319.0,1.04765085]
[1729536178826,0.001684,67320.0,67319.0,1.05665085]
[1729536179279,0.001684,67320.0,67319.0,1.05665154]
[1729536179709,0.001684,67320.0,67319.0,1.20561069]
[1729536179922,0.001684,67320.0,67319.0,1.19161069]
[1729536180346,0.001684,67320.0,67319.0,1.20261069]
[1729536181619,0.001684,67320.0,67319.0,1.20261095]
[1729536184457,0.001684,67320.0,67319.0,0.8821058]
[1729536184873,0.0139574,67320.0,67319.0,0.8821058]
[1729536185084,0.001684,67320.0,67319.0,0.8821058]
[1729536185291,0.0139574,67320.0,67319.0,1.0306518]
[1729536185548,0.001684,67320.0,67319.0,1.01950515]
[1729536187038,0.001684,67320.0,67319.0,0.87095915]
[1729536187266,0.01392768,67320.0,67319.0,0.87095915]
[1729536187468,0.001684,67320.0,67319.0,0.87095915]
[1729536188316,0.001684,67320.0,67319.0,0.87178415]
[1729536188524,0.01392768,67320.0,67319.0,0.87178415]
[1729536188739,0.001684,67320.0,67319.0,0.87178415]
[1729536188945,0.01392768,67320.0,67319.0,0.87178415]
[1729536189151,0.001684,67320.0,67319.0,0.87178415]
[1729536189358,0.01392768,67320.0,67319.0,0.87178415]
[1729536189570,0.001684,67320.0,67319.0,0.87178415]
[1729536189739,0.01392768,67320.0,67319.0,0.87178415]
[1729536189952,0.001684,67320.0,67319.0,0.87100852]
[1729536190152,0.01392768,67320.0,67319.0,0.87100852]
[1729536190354,0.001684,67320.0,67319.0,0.87100852]
[1729536190535,0.01392768,67320.0,67319.0,0.87100852]
[1729536190739,0.001684,67320.0,67319.0,0.87100852]
[1729536190933,0.01392768,67320.0,67319.0,0.87100852]
[1729536191113,0.001684,67320.0,67319.0,0.87100852]
[1729536191336,0.01392768,67320.0,67319.0,0.87100852]
[1729536191529,0.001684,67320.0,67319.0,0.87100852]
[1729536191767,0.01392768,67320.0,67319.0,0.87100852]
[1729536191966,0.001684,67320.0,67319.0,0.87100852]
[1729536192175,0.01287244,67320.0,67319.0,0.17100852]
[1729536192377,0.001684,67320.0,67319.0,0.17100852]
[1729536192581,0.01287244,67320.0,67319.0,0.17100852]
[1729536192784,0.001684,67320.0,67319.0,0.17100852]
[1729536193287,0.16141644,67320.0,67319.0,0.020825]
[1729536193511,0.24421644,67320.0,67319.0,0.020825]
[1729536194085,0.24921644,67320.0,67319.0,0.020825]
[1729536194245,0.37351644,67320.0,67319.0,0.020825]
[1729536195075,0.37351644,67320.0,67319.0,0.011825]
[1729536195503,0.37351644,67320.0,67319.0,0.003825]
[1729536196479,0.37551644,67320.0,67319.0,0.003825]
[1729536196678,0.37551644,67320.0,67319.0,0.000825]
[1729536197543,0.37851644,67320.0,67319.0,0.000825]
[1729536197953,0.37351644,67320.0,67319.0,0.000825]
[1729536198179,0.16641644,67320.0,67319.0,0.000825]
[1729536198398,0.17141644,67320.0,67319.0,0.000825]
[1729536199260,0.16941644,67320.0,67319.0,0.000825]
[1729536199670,0.16841644,67320.0,67319.0,0.000825]
[1729536199889,0.16641644,67320.0,67319.0,0.000825]
[1729536200308,0.16341644,67320.0,67319.0,0.000825]
[1729536201141,0.16541644,67320.0,67319.0,0.000825]
[1729536201556,0.16341644,67320.0,67319.0,0.000825]
[1729536201786,0.01287244,67320.0,67319.0,0.29833015]
[1729536202040,0.001684,67320.0,67319.0,0.45638567]
[1729536202252,0.002684,67320.0,67319.0,0.58048567]
[1729536202473,0.002684,67320.0,67319.0,1.28048567]
[1729536202900,0.003684,67320.0,67319.0,1.28048567]
[1729536203131,0.002684,67320.0,67319.0,1.28048567]
[1729536203336,0.002684,67320.0,67319.0,1.29448567]
[1729536203540,0.001684,67320.0,67319.0,1.29448567]
[1729536205048,0.001684,67320.0,67319.0,1.30848567]
[1729536206134,0.001684,67320.0,67319.0,1.25723015]
[1729536216209,0.001684,67320.0,67319.0,1.13313015]
[1729536216412,0.001684,67320.0,67319.0,0.87978415]
[1729536216596,0.001684,67320.0,67319.0,1.02833015]
[1729536217072,0.001684,67320.0,67319.0,0.87978415]
[1729536217259,0.01406609,67320.0,67319.0,0.87978415]
[1729536218834,0.01406609,67320.0,67319.0,0.730825]
[1729536219012,0.01406609,67320.0,67319.0,0.030825]
[1729536221106,0.16261009,67320.0,67319.0,0.030825]
[1729536223164,0.16261009,67320.0,67319.0,0.016825]
[1729536223405,0.16861009,67320.0,67319.0,0.000825]
[1729536223674,0.36721009,67320.0,67319.0,0.000825]
[1729536223872,0.36821009,67320.0,67319.0,0.000825]
[1729536226413,0.3680313,67320.0,67319.0,0.000825]
[1729536227052,1.87969045,67320.0,67319.0,0.000825]
[1729536227674,1.88169045,67320.0,67319.0,0.000825]
[1729536229994,0.376259,67313.0,67301.0,0.22351363]
[1729536230188,0.52521815,67313.0,67301.0,0.22351363]
[1729536230393,0.53534021,67313.0,67301.0,0.22351363]
[1729536230624,1.89004021,67313.0,67301.0,0.22351363]
[1729536231128,1.89204021,67313.0,67301.0,0.22351363]
[1729536231937,1.89004021,67313.0,67301.0,0.22351363]
[1729536232558,1.89404021,67313.0,67312.0,0.001826]
[1729536233605,1.89804021,67313.0,67312.0,0.002826]
[1729536234846,1.90004021,67313.0,67312.0,0.002826]
[1729536235056,1.89804021,67313.0,67312.0,0.002826]
[1729536235272,1.90004021,67313.0,67312.0,0.002826]
[1729536236628,1.89804021,67313.0,67312.0,0.002826]
[1729536237433,1.90004021,67313.0,67312.0,0.002826]
[1729536240237,0.153599,67295.0,67294.0,0.22351363]
[1729536240656,0.15361,67290.0,67288.0,0.000825]
[1729536241291,0.16863406,67290.0,67288.0,0.000825]
[1729536242865,0.16963406,67290.0,67288.0,0.000825]
[1729536243327,0.01602406,67290.0,67288.0,0.000825]
[1729536243688,0.01602406,67290.0,67289.0,0.355238]
[1729536243891,0.01602406,67290.0,67289.0,0.206626]
[1729536244099,0.003,67290.0,67289.0,0.355238]
[1729536244335,0.01798343,67290.0,67289.0,0.355238]
[1729536244547,0.001,67290.0,67289.0,0.206626]
[1729536244771,0.01598343,67290.0,67289.0,0.204626]
[1729536244973,0.15561,67290.0,67289.0,0.010826]
[1729536245195,0.16960918,67290.0,67289.0,0.010826]
[1729536245668,0.17060918,67290.0,67289.0,0.016826]
[1729536245885,0.16960918,67290.0,67289.0,0.010826]
[1729536246090,0.16960918,67290.0,67289.0,0.016826]
[1729536246324,0.16960918,67290.0,67289.0,0.006826]
[1729536246522,0.17060918,67290.0,67289.0,0.008826]
[1729536246673,0.17060918,67290.0,67289.0,0.010826]
[1729536246883,0.16960918,67290.0,67289.0,0.002826]
[1729536247084,0.16860918,67290.0,67289.0,0.000826]
[1729536247263,0.16860918,67290.0,67289.0,0.001826]
[1729536248506,0.16860918,67290.0,67289.0,0.002826]
[1729536251892,0.17340631,67290.0,67289.0,0.002826]
[1729536252639,0.17340631,67290.0,67289.0,0.001826]
[1729536252839,0.17340631,67290.0,67289.0,0.000826]
[1729536253044,0.17540631,67290.0,67289.0,0.000826]
[1729536253253,0.17840631,67290.0,67289.0,0.000826]
[1729536253797,0.17540631,67290.0,67289.0,0.000826]
[1729536253943,0.17840631,67290.0,67289.0,0.000826]
[1729536256445,0.17840631,67290.0,67289.0,0.076326]
[1729536259486,0.17540631,67290.0,67289.0,0.076326]
[1729536263849,0.19868669,67290.0,67289.0,0.076326]
[1729536264683,0.19368669,67290.0,67289.0,0.076326]
[1729536264881,0.19868669,67290.0,67289.0,0.076326]
[1729536265561,0.19368669,67290.0,67289.0,0.076326]
[1729536266628,0.19868669,67290.0,67289.0,0.076326]
[1729536266782,0.19368669,67290.0,67289.0,0.076326]
[1729536268767,0.19868669,67290.0,67289.0,0.076326]
[1729536269822,0.19368669,67290.0,67289.0,0.076326]
[1729536270703,0.17040631,67290.0,67289.0,0.076326]
[1729536271333,0.02479631,67290.0,67289.0,0.203026]
[1729536272268,0.01979631,67290.0,67289.0,0.203026]
[1729536272603,0.148606,67292.0,67289.0,0.203026]
[1729536272820,0.01976051,67290.0,67289.0,0.203026]
[1729536273010,0.148609,67291.0,67289.0,0.203026]
[1729536273190,0.01976051,67290.0,67289.0,0.203026]
[1729536273395,0.16837051,67290.0,67289.0,0.207026]
[1729536273835,0.16937051,67290.0,67289.0,0.210026]
[1729536274142,0.16837051,67290.0,67289.0,0.000826]
[1729536274380,0.17337051,67290.0,67289.0,0.005826]
[1729536274802,0.17337051,67290.0,67289.0,0.008826]
[1729536275218,0.17337051,67290.0,67289.0,0.003826]
[1729536275477,0.17337051,67290.0,67289.0,0.006826]
[1729536275888,0.17337051,67290.0,67289.0,0.003826]
[1729536276298,0.17337051,67290.0,67289.0,0.005826]
[1729536276758,0.17337051,67290.0,67289.0,0.003826]
[1729536276971,0.21940253,67290.0,67289.0,0.003826]
[1729536277395,0.36836168,67290.0,67289.0,0.000826]
[1729536277597,0.36836168,67290.0,67289.0,0.002826]
[1729536278003,0.50046168,67290.0,67289.0,0.000826]
[1729536278211,0.50246168,67290.0,67289.0,0.000826]
[1729536278423,0.61246168,67290.0,67289.0,0.000826]
[1729536278644,0.65451001,67290.0,67289.0,0.000826]
[1729536278860,0.69066168,67290.0,67289.0,0.000826]
[1729536279107,0.69366168,67290.0,67289.0,0.000826]
[1729536279534,0.69066168,67290.0,67289.0,0.000826]
[1729536279718,0.153639,67277.0,67275.0,0.22351363]
[1729536279921,0.34863017,67277.0,67275.0,0.22351363]
[1729536280132,0.36828054,67277.0,67268.0,0.002]
[1729536280390,0.32224852,67277.0,67268.0,0.22551363]
[1729536280602,0.36820886,67277.0,67268.0,0.22551363]
[1729536281440,0.32224852,67277.0,67268.0,0.22551363]
[1729536281847,0.32324852,67277.0,67268.0,0.22551363]
[1729536282260,0.33324852,67277.0,67276.0,0.001826]
[1729536283527,0.33724852,67277.0,67276.0,0.001826]
[1729536284382,1.59194852,67277.0,67276.0,0.001826]
[1729536284922,1.58794852,67277.0,67276.0,0.001826]
[1729536285434,1.59794852,67277.0,67276.0,0.002826]
[1729536287179,1.44898937,67277.0,67276.0,0.002826]
[1729536289007,0.19428937,67277.0,67276.0,0.002826]
[1729536296431,0.18928937,67277.0,67276.0,0.002826]
[1729536297719,0.17928937,67277.0,67276.0,0.001826]
[1729536297916,0.18228937,67277.0,67276.0,0.001826]
[1729536298131,0.17128937,67277.0,67276.0,0.000826]
[1729536298336,0.17328937,67277.0,67276.0,0.000826]
[1729536302622,0.17828937,67277.0,67276.0,0.000826]
[1729536310342,0.22430168,67277.0,67276.0,0.000826]
[1729536312007,0.22430168,67277.0,67276.0,0.126126]
[1729536320057,0.22430168,67277.0,67276.0,0.000826]
[1729536323792,0.37326083,67277.0,67276.0,0.000826]
[1729536323999,1.73796083,67277.0,67276.0,0.000826]
[1729536324238,1.86406083,67277.0,67276.0,0.000826]
[1729536324657,1.97466535,67277.0,67276.0,0.000826]
[1729536325768,0.153667,67264.0,67263.0,0.000826]
[1729536325972,0.34863846,67264.0,67263.0,0.000826]
[1729536326178,0.3679311,67264.0,67263.0,0.000826]
[1729536326589,0.41215011,67264.0,67263.0,0.000826]
[1729536327251,1.67185011,67264.0,67263.0,0.000826]
[1729536327461,1.6296311,67264.0,67263.0,0.000826]
[1729536327661,1.6376311,67264.0,67263.0,0.000826]
[1729536328083,1.6326311,67264.0,67263.0,0.000826]
[1729536328489,1.6446311,67264.0,67263.0,0.001826]
[1729536328689,1.6366311,67264.0,67263.0,0.000826]
[1729536328891,1.7366311,67264.0,67263.0,0.000826]
[1729536329093,1.7496311,67264.0,67263.0,0.001826]
[1729536329301,1.7436311,67264.0,67263.0,0.001826]
[1729536329481,1.7556311,67264.0,67263.0,0.001826]
[1729536330264,1.7426311,67264.0,67263.0,0.000826]
[1729536330466,1.7436311,67264.0,67263.0,0.001826]
[1729536330726,1.7436311,67264.0,67263.0,0.000826]
[1729536331105,1.7596311,67264.0,67263.0,0.001826]
[1729536331565,1.60867195,67264.0,67263.0,0.001826]
[1729536331727,1.56265964,67264.0,67263.0,0.001826]
[1729536331929,1.48595145,67264.0,67263.0,0.001826]
[1729536332802,1.47295145,67264.0,67263.0,0.001826]
[1729536333281,1.47295145,67264.0,67263.0,0.190626]
[1729536333282,0.05458445,67264.0,67263.0,0.190626]
[1729536333459,0.05658445,67264.0,67263.0,0.339296]
[1729536333686,0.002,67264.0,67263.0,0.339296]
[1729536333842,0.002,67264.0,67263.0,0.190626]
[1729536334017,0.02110507,67264.0,67263.0,0.190626]
[1729536334217,0.01910507,67264.0,67263.0,0.190626]
[1729536334572,0.153667,67264.0,67263.0,0.190626]
[1729536334784,0.17480748,67264.0,67263.0,0.190626]
[1729536334987,0.17280748,67264.0,67263.0,0.190626]
[1729536335645,0.17480748,67264.0,67263.0,0.190626]
[1729536336093,0.17280748,67264.0,67263.0,0.190626]
[1729536336304,0.17380748,67264.0,67263.0,0.198626]
[1729536336547,0.17280748,67264.0,67263.0,0.192626]
[1729536336993,0.17280748,67264.0,67263.0,0.190626]
[1729536337433,0.17280748,67264.0,67263.0,0.191626]
[1729536340025,0.17280748,67264.0,67263.0,0.192452]
[1729536340434,0.17280748,67264.0,67263.0,0.191452]
[1729536340748,0.17280748,67264.0,67263.0,0.192452]
[1729536340948,0.17980748,67264.0,67263.0,0.192452]
[1729536341155,0.17980748,67264.0,67263.0,0.191452]
[1729536341342,0.02614048,67264.0,67263.0,0.191452]
[1729536341549,0.02614048,67264.0,67263.0,0.340122]
[1729536341550,0.02714048,67264.0,67263.0,0.340122]
[1729536342159,0.02614048,67264.0,67263.0,0.340122]
[1729536342395,0.01,67264.0,67263.0,0.340122]
[1729536342621,0.014,67264.0,67263.0,0.191452]
[1729536342826,0.0331206,67264.0,67263.0,0.191452]
[1729536343007,0.0191206,67264.0,67263.0,0.191452]
[1729536343201,0.22351363,67269.0,67264.0,0.2107]
[1729536343445,0.0191206,67268.0,67267.0,0.0779]
[1729536343647,0.0191206,67268.0,67267.0,0.359059]
[1729536343851,0.001652,67276.0,67273.0,0.148647]